Workbook

Sheet AC
A2: Omklassificering AC
A4: Fra AC-fuldmægtig til specialkonsulent
A6: Nuværende løn, årligt, uden pension | B6: 0 kr.
A7: Ny basisløn | B7: =[1]Special_chef!$D$7 -> 553,746 kr.
A8: Evt. kvalifikationstillæg | B8: 0 kr.
A9: Evt. funktionstillæg | B9: 0 kr.
A10: Ny løn, i alt | B10: =B7+B8+B9 -> 553,746 kr.
A11: Lønforbedring | B11: =B10-B6 -> 553,746 kr.
A14: Fra specialkonsulent til chefkonsulent uden personaleledelse
A16: Nuværende løn, årligt, uden pension | B16: 0 kr.
A17: Ny basisløn | B17: =[1]Special_chef!$D$18 -> 596,036 kr.
A18: Evt. kvalifikationstillæg | B18: 0 kr.
A19: Evt. funktionstillæg | B19: 0 kr.
A20: Ny løn, i alt | B20: =B17+B18+B19 -> 596,036 kr.
A21: Lønforbedring | B21: =B20-B16 -> 596,036 kr.
A25: Fra chefkonsulent til chefkonsulent med personaleledelse
A27: Nuværende løn, årligt, uden pension | B27: 0 kr.
A28: Ny basisløn | B28: =[1]Special_chef!$D$29 -> 632,455 kr.
A29: Evt. kvalifikationstillæg | B29: 0 kr.
A30: Evt. funktionstillæg | B30: 0 kr.
A31: Ny løn, i alt | B31: =B28+B29+B30 -> 632,455 kr.
A32: Lønforbedring | B32: =B31-B27 -> 632,455 kr.

Sheet HK
A2: Løngruppeskifte HK
A4: Nuværende løn, årligt, uden pension | B4: 393,988 kr. | D4: Kontorfunktionærer PROVINS | E4: Basisløn
A5: Ny basisløn | B5: 358,878 kr. | D5: Løngruppe 1, trin 1 | E5: =226533*[1]Omregning!$C$1 -> kr 278,198
A6: Evt. kvalifikationstillæg | B6: 15,010 kr. | D6: Løngruppe 2, trin 1 | E6: =257151*[1]Omregning!$C$1 -> kr 315,799
A7: Evt. funktionstillæg | B7: 20,100 kr. | D7: Løngruppe 2, trin 2 | E7: =275347*[1]Omregning!$C$1 -> kr 338,145
A8: Ny løn, i alt | B8: =B5+B6+B7 -> 393,988 kr. | D8: Løngruppe 3, trin 1 | E8: =290180*[1]Omregning!$C$1 -> kr 356,360
A9: Lønforbedring | B9: =B8-B4 -> 0 kr. | D9: Løngruppe 3, trin 2 | E9: =310626*[1]Omregning!$C$1 -> kr 381,470
D10: Løngruppe 3, trin 3 | E10: =343393*[1]Omregning!$C$1 -> kr 421,710
D11: Løngruppe 3, trin 4 | E11: =369606*[1]Omregning!$C$1 -> kr 453,901
D14: Kontorfunktionærer HOVEDSTAD | E14: Basisløn
D15: Løngruppe 1, trin 1 | E15: =229229*[1]Omregning!$C$1 -> kr 281,509
D16: Løngruppe 1, trin 2 | E16: =238404*[1]Omregning!$C$1 -> kr 292,776
D17: Løngruppe 2, trin 1 | E17: =267637*[1]Omregning!$C$1 -> kr 328,676
D18: Løngruppe 2, trin 2 | E18: =285832*[1]Omregning!$C$1 -> kr 351,021
D19: Løngruppe 3, trin 1 | E19: =299224*[1]Omregning!$C$1 -> kr 367,467
D20: Løngruppe 3, trin 2 | E20: =315869*[1]Omregning!$C$1 -> kr 387,908
D21: Løngruppe 3, trin 3 | E21: =343393*[1]Omregning!$C$1 -> kr 421,710
D22: Løngruppe 3, trin 4 | E22: =369606*[1]Omregning!$C$1 -> kr 453,901
